Workbook

Sheet Instructions
D3: This sheet is provided on an 'as is' basis. It may contain calculation issues and may not be a perfect fit for your use case.
A7: Instructions
A8: Step 1: Use any of the formulas in the following worksheets to value your startup
A9: Step 2: List the assumptions you want to create scenarios for
A10: Step 3: Copy and paste the list of assumptions by the number of scenarios you wish to have
A11: It is recommended to have at least three: 1. Base case, 2. Worst or Low case, 3. Best or High case
A12: Step 4: Fill in all details of each scenario, the variables you should adjust are | G12: highlighted in yellow
A13: Step 5: Ensure the layout of all three scenarios is identical then calculate and compare
A17: © Activate Ventures LLP 2021-2023

Sheet Simple Comparables
A1: Insert Your Company Logo Here | C1: Insert Your Company Name
E3: ``
A4: Instructions
A5: Step 1: Find the sales run rate and valuation for a company that is comparable to your company in terms of business category and geographical region
A6: Step 2: From your financial model insert your run rate sales at the end of 3 years
A7: Step 3: Esimate a Discount/Risk factor -- this is a % by which you reduce your valuation due to the risks that you will not make your sales estimates, or even still be in business in 3 years
A9: Category
A10: Business type | C10: Chose industry (eg SAAS)
A11: Geographical region | C11: UK
A14: Comparable Company Data
A15: Valuation of comparable company in your geographical region | C15: £9,000,000
A16: Sales of comparable company in your geographical region | C16: £3,000,000 | E16: Pre-Money Valuation is the value of your company BEFORE funding
A17: Valuation/sales multiple | C17: =C15/C16 -> 3
A19: =$C$1&" - Base case" -> Insert Your Company Name - Base case | C19: Target Startup | E19: Simple Comparables Method
A20: Run rate after 3 year sales | C20: £1,000,000
A21: Discount/Risk factor | C21: 50% | E21: Pre-Money Valuation | G21: =C20*C$17*C21 -> £1,500,000
A24: =$C$1&" - Low case" -> Insert Your Company Name - Low case | C24: Target Startup | E24: Simple Comparables Method
A25: Run rate after 3 year sales | C25: £500,000
A26: Discount/Risk factor | C26: 50% | E26: Pre-Money Valuation | G26: =C25*C$17*C26 -> £750,000
A29: =$C$1&" - High case" -> Insert Your Company Name - High case | C29: Target Startup | E29: Simple Comparables Method
A30: Run rate after 3 year sales | C30: £1,500,000
A31: Discount/Risk factor | C31: 50% | E31: Pre-Money Valuation | G31: =C30*C$17*C31 -> £2,250,000
A35: This sheet is provided on an 'as is' basis. It may contain calculation issues and may not be a perfect fit for your use case.
C37: This financial model is powered by Activate Ventures LLP (www.activateventures.co.uk)

Sheet Scorecard Valuation
A1: Insert Your Company Logo Here | C1: Insert Your Company Name
A4: Instructions
A5: Step 1: Determine average pre-money valuation of the pre-revenue companies in your business category and geographical region
A6: Step 2: Compare your startup to your perception of similar companies with deals done in your category, considering the below factors, e.g. if your believe your team is much stronger than the comparable company which has a valuation, enter 150%
A7: Fill out the details about your startup considering 100 % as the norm
A9: Category
A10: Business type | C10: Choose industry
A11: Geographical region | C11: UK
A14: Assumptions- Base Case
A15: Average pre-money valuation of a comparable company in the region | C15: £1,000,000 | G15: Pre-Money Valuation is the value of your company BEFORE funding
A18: Comparison Factor | C18: Range | D18: Your Startup | E18: Factor | G18: Scorecard Method
A19: Strength of Entrepreneur and Team | C19: 0-30 % | D19: 150% | E19: =0.3*D19 -> 0.450
A20: Size of the Opportunity | C20: 0-25 % | D20: 125% | E20: =0.25*D20 -> 0.313 | G20: Pre-Money Valuation | I20: =C15*E27 -> £1,107,500
A21: Product/Technology | C21: 0-15 % | D21: 80% | E21: =0.15*D21 -> 0.120
A22: Competitive Environment | C22: 0-10 % | D22: 50% | E22: =0.1*D22 -> 0.050
A23: Marketing/Sales/Partnerships | C23: 0-10 % | D23: 75% | E23: 0.075
A24: Need for Additional Investment | C24: 0-5 % | D24: 100% | E24: =0.05*D24 -> 0.050
A25: Other factors (great early customer feedback) | C25: 0-5 % | D25: 100% | E25: 0.050
A27: Sum | E27: =SUM(E19:E25) -> 1.108
A30: Assumptions- Low Case
A31: Average pre-money valuation in the region | C31: £1,000,000
A34: Comparison Factor | C34: Range | D34: Your Startup | E34: Factor | G34: Scorecard Method
A35: Strength of Entrepreneur and Team | C35: 0-30 % | D35: 125% | E35: =0.3*D35 -> 0.375
A36: Size of the Opportunity | C36: 0-25 % | D36: 100% | E36: =0.25*D36 -> 0.250 | G36: Pre-Money Valuation | I36: =C31*E43 -> £970,000
A37: Product/Technology | C37: 0-15 % | D37: 80% | E37: =0.15*D37 -> 0.120
A38: Competitive Environment | C38: 0-10 % | D38: 50% | E38: =0.1*D38 -> 0.050
A39: Marketing/Sales/Partnerships | C39: 0-10 % | D39: 75% | E39: 0.075
A40: Need for Additional Investment | C40: 0-5 % | D40: 100% | E40: =0.05*D40 -> 0.050
A41: Other factors (great early customer feedback) | C41: 0-5 % | D41: 100% | E41: 0.050
A43: Sum | E43: =SUM(E35:E41) -> 0.970
A46: Assumptions- High Case
A47: Average pre-money valuation in the region | C47: £1,000,000
A50: Comparison Factor | C50: Range | D50: Your Startup | E50: Factor | G50: Scorecard Method
A51: Strength of Entrepreneur and Team | C51: 0-30 % | D51: 150% | E51: =0.3*D51 -> 0.450
A52: Size of the Opportunity | C52: 0-25 % | D52: 200% | E52: =0.25*D52 -> 0.500 | G52: Pre-Money Valuation | I52: =C47*E59 -> £1,325,000
A53: Product/Technology | C53: 0-15 % | D53: 100% | E53: =0.15*D53 -> 0.150
A54: Competitive Environment | C54: 0-10 % | D54: 50% | E54: =0.1*D54 -> 0.050
A55: Marketing/Sales/Partnerships | C55: 0-10 % | D55: 75% | E55: 0.075
A56: Need for Additional Investment | C56: 0-5 % | D56: 100% | E56: =0.05*D56 -> 0.050
A57: Other factors (great early customer feedback) | C57: 0-5 % | D57: 100% | E57: 0.050
A59: Sum | E59: =SUM(E51:E57) -> 1.325
A63: This sheet is provided on an 'as is' basis. It may contain calculation issues and may not be a perfect fit for your use case.
C65: This financial model is powered by Activate Ventures LLP (www.activateventures.co.uk)

Sheet Earnings Multiple
A1: Insert Your Company Logo Here | C1: Insert Your Company Name
A4: Instructions
A5: Step 1: Get EBITDA from your company's income statement
A6: Step 2: Find regional/industry average multiple
A10: Assumptions | E10: Enterprise Value
A11: EBITDA | C11: £150,000
A12: EBITDA Multiple x | C12: 8.0 | D12: x | E12: Value of the Startup | F12: =C11*C12 -> £1,200,000
A16: This sheet is provided on an 'as is' basis. It may contain calculation issues and may not be a perfect fit for your use case.
D18: This financial model is powered by Activate Ventures LLP (www.activateventures.co.uk)

Sheet Berkus
A1: Insert Your Company Logo Here | C1: Insert Your Company Name
A4: Instructions
A5: Step 1: Fill out the parameters below with values between £0 - £500.000
A6: The values can be found by ranking the startup: £0 = None, £500.000 = Max
A7: Step 2: Change the currency to your current market and take the overconfidence effect into account
A10: Berkus Method
A11: Sound Idea | C11: £400,000
A12: Working Prototype | C12: £100,000
A13: Quality Management Team | C13: £300,000
A14: Strategic Relationships | C14: £50,000
A15: Product Rollout or Sales | C15: £250,000
A17: Startup Value | C17: =SUM(C11:C15) -> £1,100,000
A21: This sheet is provided on an 'as is' basis. It may contain calculation issues and may not be a perfect fit for your use case.
D23: This financial model is powered by Activate Ventures LLP (www.activateventures.co.uk)

Sheet Risk Factor Summation
A1: Insert Your Company Logo Here | C1: Insert Your Company Name
A4: Instructions
A5: Step 1: Determine average pre-money valuation of the pre-revenue companies in the region
A6: Step 2: Address the list of risks below associated with the startup and its industry
A7: Assign ratings to each risk factor and adjust the result to the average pre-money valuation
A10: Assumptions
A11: Average pre-money valuation in the region | C11: £1,000,000
A14: Rating System | B14: Risk Rationale | C14: Adjustment to Avg Pre-Money Valuation
A15: 2 | B15: Extremely positive mitigation | C15: Add £500,000
A16: 1 | B16: Positive mitigation | C16: Add £250,000
A17: 0 | B17: Neutral | C17: Add/Subtract nothing
A18: -1 | B18: Negative mitigation | C18: Subtract £250,000
A19: -2 | B19: Extremely negative mitigation | C19: Subtract £500,000 | E19: Pre-Money Valuation is the value of your company BEFORE funding
A22: Risk Factor | B22: Ratings | C22: Add/Subtract | E22: Risk Factor Summation
A23: Management Risk | B23: 2 | C23: =IF(B23=$A$15,500000,IF(B23=$A$16,250000,IF(B23=$A$17,0,IF(B23=$A$18,-250000,IF(B23=$A$19,-500000))))) -> £500,000
A24: Stage of the Startup | B24: -1 | C24: =IF(B24=$A$15,500000,IF(B24=$A$16,250000,IF(B24=$A$17,0,IF(B24=$A$18,-250000,IF(B24=$A$19,-500000))))) -> -£250,000 | E24: Pre-Money Valuation | G24: =C11+C36 -> £1,250,000
A25: Legislation/Political Risk | B25: 0 | C25: =IF(B25=$A$15,500000,IF(B25=$A$16,250000,IF(B25=$A$17,0,IF(B25=$A$18,-250000,IF(B25=$A$19,-500000))))) -> £0
A26: Supply Chain Risk | B26: 0 | C26: £0
A27: Sales and Marketing Risk | B27: 2 | C27: £500,000
A28: Funding/Capital Risk | B28: -2 | C28: -£500,000
A29: Competition Risk | B29: -2 | C29: -£500,000
A30: Technology Risk | B30: 1 | C30: £250,000
A31: Litigation Risk | B31: -1 | C31: =IF(B31=$A$15,500000,IF(B31=$A$16,250000,IF(B31=$A$17,0,IF(B31=$A$18,-250000,IF(B31=$A$19,-500000))))) -> -£250,000
A32: International Risk | B32: 0 | C32: £0
A33: Reputation Risk | B33: 1 | C33: £250,000
A34: Exit Value Risk | B34: 1 | C34: £250,000
A36: Total Adjustments | C36: =SUM(C23:C34) -> £250,000
A40: This sheet is provided on an 'as is' basis. It may contain calculation issues and may not be a perfect fit for your use case.
C42: This financial model is powered by Activate Ventures LLP (www.activateventures.co.uk)

Sheet DCF
A1: Insert Your Company Logo Here | C1: Insert Your Company Name
A3: Discounted Cashflow (DCF) Method values a startup on the basis of its future performance, i.e. projections. You can only use DCF Method if you have POSITIVE Free Cashflow
A4: Instructions
A5: Step 1: Get Earnings Before Interest & Taxes (EBIT) and Depreciation & Amortisation (D&A) from your financial forecast
A6: Step 2: Calculate the noncash working capital (NWC). There are 2 ways to find the NWC:
B7: 1. NWC = Current Assets (less cash) - Current Liabilities (less debt)
B8: 2. NWC = Accounts Receivable + Inventory - Accounts Payable
A9: Step 3: Find through public sources: risk free rate, the beta for your industry, market return, and perpetual growth rate. See definitions below for more information on what these are.
E11: You will need to project up to the point when the company growth is stable. This is a 5 year model.
A12: Assumptions (see Definitions below) | E12: Free Cash Flow | H12: =YEAR(H13) -> 2023 | I12: 2024 | J12: 2025 | K12: 2026 | L12: 2027
A13: Tax Rate (%) | C13: 25% | E13: Date | G13: =C16 -> 2023-01-31 | H13: =C17 -> 2023-04-05 | I13: =EDATE(H13,12) -> 2024-04-05 | J13: =EDATE(I13,12) -> 2025-04-05 | K13: 2026-04-05 | L13: 2027-04-05
A14: Annual Estimated Capex | C14: £15,000 | E14: Time Periods | H14: =H15 -> 0.18 | I14: =H14+I15 -> 1.18 | J14: =I14+J15 -> 2.18 | K14: 3.18 | L14: 4.18
E15: Year Fraction | H15: =YEARFRAC(G13,H13) -> 0.18 | I15: 1.00 | J15: 1.00 | K15: 1.00 | L15: 1.00
A16: Valuation Date (MM/DD/YYYY) | C16: 2023-01-31 | E16: Earnings Before Interest & Taxes (EBIT) | H16: 47,814 | I16: 51,095 | J16: 55,861 | K16: 58,691 | L16: 63,039 | M16: Enter your projections here
A17: Fiscal Year End (MM/DD/YYYY) | C17: 2023-04-05 | E17: ="Less: Taxes at "&TEXT(C13,"00%")&" Tax Rate" -> Less: Taxes at 25% Tax Rate | H17: =-H16*$C$13 -> (11,954) | I17: =-I16*$C$13 -> (12,774) | J17: =-J16*$C$13 -> (13,965) | K17: =-K16*$C$13 -> (14,673) | L17: =-L16*$C$13 -> (15,760)
E18: Plus: Depreciation & Amortisation | H18: 15,008 | I18: 15,005 | J18: 15,003 | K18: 15,002 | L18: 15,001 | M18: Enter your projections here
A19: Current Price per share (£) | C19: £25.00 | E19: Less: Capex | H19: =-$C$14 -> (15,000) | I19: =-$C$14 -> (15,000) | J19: =-$C$14 -> (15,000) | K19: =-$C$14 -> (15,000) | L19: =-$C$14 -> (15,000)
A20: Shares Outstanding | C20: 20,000 | E20: Changes in NWC (increase)/decrease | H20: (375) | I20: (611) | J20: (398) | K20: (511) | L20: (272) | M20: Enter NEGATIVE number for increase in NWC, and vice versa
A21: Equity Value | C21: =C19*C20 -> £500,000 | E21: Free Cash Flow (FCF) | H21: =SUM(H16:H20) -> 35,494 | I21: =SUM(I16:I20) -> 37,715 | J21: 41,501 | K21: 43,509 | L21: 47,008
A23: Risk Free Rate (Bank of England 10 Yr gild yield %) | C23: 3.94% | E23: Discounted Cash Flow | H23: =H12 -> 2023 | I23: =I12 -> 2024 | J23: 2025 | K23: 2026 | L23: 2027 | M23: Total
A24: Beta for your industry | C24: 1.3x
A25: Market return (Avg S&P 500 return %) | C25: 10.00%
A26: Cost of Equity | C26: =C23+C24*(C25-C23) -> 11.82% | E26: FCF Adjusted for partial year | G26: =G24+G21 -> 0 | H26: =(H24+H21)*H15 -> 6,409 | I26: 37,715 | J26: 41,501 | K26: 43,509 | L26: 47,008
A27: Debt Outstanding | C27: £10,000 | E27: Average Terminal Value | L27: =G39 -> 552,462
A28: Cost of Debt (Interest rate %) | C28: 5.50% | E28: Total | G28: =G26+G27 -> 0 | H28: =H26+H27 -> 6,409 | I28: =I26+I27 -> 37,715 | J28: 41,501 | K28: 43,509 | L28: 599,470
A29: Discount rate or Weighted Avg Cost of Capital (WACC) | C29: =(C21/(C21+C27)*C26)+(C27/(C21+C27)*C28*(1-C13)) -> 11.67%
E30: Discount Factor calculated with WACC | H30: =1/(1+$C$29)^H14 -> 0.98 | I30: =1/(1+$C$29)^I14 -> 0.88 | J30: =1/(1+$C$29)^J14 -> 0.79 | K30: =1/(1+$C$29)^K14 -> 0.70 | L30: =1/(1+$C$29)^L14 -> 0.63
A31: Perpetual Growth Rate (%) | C31: 3% | E31: Present value of FCF | H31: =H26*H30 -> 6,282 | I31: =I26*I30 -> 33,108 | J31: =J26*J30 -> 32,625 | K31: =K26*K30 -> 30,630 | L31: =L26*L30 -> 29,636
A32: EV/EBITDA Mulltiple of companies in your industry | C32: 7.0x | E32: Present value of Terminal Value | L32: =L27*L30 -> 348,295
E33: Total Present Value | H33: =H31+H32 -> 6,282 | I33: =I31+I32 -> 33,108 | J33: 32,625 | K33: 30,630 | L33: 377,931 | M33: =SUM(H33:L33) -> 480,577
E36: Terminal Value Calculations | I36: Enterprise Value
E37: Perpetual Growth Method | G37: =(L21*(1+C31))/(C29-C31) -> 558,643
E38: Exit Multiple (EV/EBITDA) Method | G38: =C32*(L16+L18) -> 546,280 | I38: ="Value of your Startup on "&TEXT(C16, "DD/MM/YYYY") -> Value of your Startup on 31/01/2023 | K38: =SUM(H33:L33) -> £480,577 | O38: =XNPV(C29,G28:L28,G13:L13) -> £480,710 | P38: check (should be close, not exact)
E39: Average Terminal Value | G39: =AVERAGE(G37:G38) -> 552,462
A41: Definitions
A42: Annual Estimaed Capex is your estimated annual capital expenditures (from your forecast)
A43: Valuation Date is the date you want the value of your startup
A44: Risk Free Rate is the return of an investment with zero risk. You should use the Bank of England 10 Yr gild yield % (for UK company) or US 10 year Treasury rate (for US company).
A45: Beta for your industry is the measure of the volatility of stock prices for companies in your industry. You can google this.
A46: Market return is the average return of the stock market. You can use the avg S&P 500 return.
A47: Cost of Debt is the cost you pay on your debt, i.e. the interest rate you pay.
A48: Discount rate or Weighted Avg Cost of Capital (WACC)
A49: Perpetual Growth Rate (%)=company's annual growth rate beyond the projected cashflow. You can use steady state growth rate of your industry, or GCP growth rate for your country if your company is mature and its growth stabilized.
A50: Terminal Value is the value of company beyond projected cashflows
A51: Enterprise Value is the Company's Total Value, i.e. the value of your startup
A55: This sheet is provided on an 'as is' basis. It may contain calculation issues and may not be a perfect fit for your use case.
C60: This financial model is powered by Activate Ventures LLP (www.activateventures.co.uk)

Sheet Book Value
A1: Insert Your Company Logo Here | C1: Insert Your Company Name
A4: Instructions
A5: Step 1: Get the total assets and total liabilities from the income statement
A6: Step 2: Calculate using the formula below
A9: Assumptions | E9: Book Value Formula
A10: Total Assets | C10: £500,000
A11: Total Liabilities | C11: £200,000 | E11: Book Value of the Startup | G11: =C10-C11 -> £300,000
A15: This sheet is provided on an 'as is' basis. It may contain calculation issues and may not be a perfect fit for your use case.
D17: This financial model is powered by Activate Ventures LLP (www.activateventures.co.uk)
